[Event "*** SCC Grand Prix: Titled Tuesday Blitz"]
[Site "Chess.com"]
[Date "2020.06.09"]
[Round "8"]
[White "PotapovaM"]
[Black "CalinGheorghiu"]
[Result "0-1"]
[WhiteElo "2433"]
[BlackElo "2356"]
[TimeControl "180+1"]
[EndTime "10:36:15 PDT"]
[Termination "CalinGheorghiu won on time"]

1. d4 {[%clk 0:03:00.9]} 1... Nf6 {[%clk 0:02:31.8]} 2. c4 {[%clk 0:03:00.9]}
2... g6 {[%clk 0:02:29.9]} 3. Nc3 {[%clk 0:03:00.6]} 3... Bg7 {[%clk 0:02:25.4]}
4. e4 {[%clk 0:03:01.1]} 4... d6 {[%clk 0:02:25.3]} 5. h3 {[%clk 0:03:01.6]}
5... O-O {[%clk 0:02:24.2]} 6. Be3 {[%clk 0:03:02.2]} 6... c5 {[%clk 0:02:17.5]}
7. d5 {[%clk 0:02:58.6]} 7... Nbd7 {[%clk 0:02:16.1]} 8. Nf3 {[%clk 0:02:44.1]}
8... a6 {[%clk 0:02:12.2]} 9. Be2 {[%clk 0:02:43.4]} 9... Rb8 {[%clk 0:02:11.7]}
10. a4 {[%clk 0:02:42.3]} 10... Ne5 {[%clk 0:02:06.5]} 11. Nxe5 {[%clk
0:02:36.2]} 11... dxe5 {[%clk 0:02:05.7]} 12. Bxc5 {[%clk 0:02:36.9]} 12... b5
{[%clk 0:01:58.9]} 13. b4 {[%clk 0:02:16.8]} 13... bxc4 {[%clk 0:01:49.8]} 14.
O-O {[%clk 0:02:17.4]} 14... Nd7 {[%clk 0:01:43.2]} 15. Bxc4 {[%clk 0:02:12.6]}
15... Nxc5 {[%clk 0:01:42.6]} 16. bxc5 {[%clk 0:02:13.5]} 16... Qa5 {[%clk
0:01:43.1]} 17. Qd3 {[%clk 0:01:32.7]} 17... Qxc5 {[%clk 0:01:39.3]} 18. Rfc1
{[%clk 0:01:31.1]} 18... Qd4 {[%clk 0:01:37.9]} 19. Bxa6 {[%clk 0:01:23.7]}
19... Rb2 {[%clk 0:00:52.1]} 20. Qxd4 {[%clk 0:00:51.2]} 20... exd4 {[%clk
0:00:51.9]} 21. Nd1 {[%clk 0:00:51]} 21... Bxa6 {[%clk 0:00:28]} 22. Nxb2 {[%clk
0:00:50.8]} 22... d3 {[%clk 0:00:28.4]} 23. Rab1 {[%clk 0:00:50.1]} 23... d2
{[%clk 0:00:28.1]} 24. Rd1 {[%clk 0:00:47.1]} 24... Bc3 {[%clk 0:00:27.9]} 25.
e5 {[%clk 0:00:28.7]} 25... Rb8 {[%clk 0:00:24.3]} 26. d6 {[%clk 0:00:26.3]}
26... exd6 {[%clk 0:00:24.2]} 27. exd6 {[%clk 0:00:27.2]} 27... Kf8 {[%clk
0:00:24.3]} 28. d7 {[%clk 0:00:05.6]} 28... Ke7 {[%clk 0:00:23.1]} 29. d8=Q+
{[%clk 0:00:05]} 29... Kxd8 {[%clk 0:00:21.9]} 30. f4 {[%clk 0:00:02.1]} 30...
Ke7 {[%clk 0:00:20.2]} 31. g4 {[%clk 0:00:01.9]} 31... Bxb2 {[%clk 0:00:19.2]}
32. Rxd2 {[%clk 0:00:01.1]} 32... Bd4+ {[%clk 0:00:19.3]} 33. Rxd4 {[%clk
0:00:01.8]} 33... Rxb1+ {[%clk 0:00:19.4]} 34. Kf2 {[%clk 0:00:02.7]} 34... Bb7
{[%clk 0:00:18.7]} 35. Rc4 {[%clk 0:00:02.3]} 35... Rb2+ {[%clk 0:00:18.3]} 36.
Ke3 {[%clk 0:00:02.7]} 36... Rb3+ {[%clk 0:00:18.6]} 37. Kd4 {[%clk 0:00:03.2]}
37... Kd6 {[%clk 0:00:17.3]} 38. f5 {[%clk 0:00:02.8]} 38... gxf5 {[%clk
0:00:16.9]} 39. gxf5 {[%clk 0:00:03.7]} 39... Rxh3 {[%clk 0:00:16.8]} 40. Rc1
{[%clk 0:00:04.2]} 40... Rh4+ {[%clk 0:00:16.9]} 41. Kc3 {[%clk 0:00:03.8]}
41... h5 {[%clk 0:00:16.2]} 42. Kb3 {[%clk 0:00:03.2]} 42... Rf4 {[%clk
0:00:14.4]} 43. a5 {[%clk 0:00:01.8]} 43... Bd5+ {[%clk 0:00:13.1]} 44. Ka3
{[%clk 0:00:01.8]} 44... h4 {[%clk 0:00:13.1]} 45. a6 {[%clk 0:00:02.1]} 45...
h3 {[%clk 0:00:13.5]} 46. a7 {[%clk 0:00:02.2]} 46... Rh4 {[%clk 0:00:10.9]} 47.
Rd1 {[%clk 0:00:01.8]} 47... Rh8 {[%clk 0:00:11.2]} 48. Kb4 {[%clk 0:00:01.8]}
48... h2 {[%clk 0:00:11.5]} 0-1

[Event "*** SCC Grand Prix: Titled Tuesday Blitz"]
[Site "Chess.com"]
[Date "2020.06.09"]
[Round "8"]
[White "mamonika"]
[Black "PauloFanha"]
[Result "1/2-1/2"]
[WhiteElo "1937"]
[BlackElo "1988"]
[TimeControl "180+1"]
[EndTime "10:36:15 PDT"]
[Termination "Game drawn by repetition"]

1. e4 {[%clk 0:03:00.9]} 1... d5 {[%clk 0:03:00]} 2. exd5 {[%clk 0:02:59.7]}
2... Qxd5 {[%clk 0:03:00.4]} 3. Nc3 {[%clk 0:02:59.5]} 3... Qd6 {[%clk
0:03:00.5]} 4. d4 {[%clk 0:02:59]} 4... Nf6 {[%clk 0:02:59.9]} 5. Bc4 {[%clk
0:02:38.6]} 5... c6 {[%clk 0:02:59.2]} 6. Nge2 {[%clk 0:02:38.6]} 6... Bg4
{[%clk 0:02:57.6]} 7. O-O {[%clk 0:02:37.1]} 7... e6 {[%clk 0:02:54.4]} 8. Qd3
{[%clk 0:02:29.1]} 8... Qc7 {[%clk 0:02:45.8]} 9. Bf4 {[%clk 0:02:27.7]} 9...
Bd6 {[%clk 0:02:43.9]} 10. Bxd6 {[%clk 0:02:16.3]} 10... Qxd6 {[%clk 0:02:43.6]}
11. Ng3 {[%clk 0:02:07.2]} 11... g6 {[%clk 0:02:33.3]} 12. h3 {[%clk 0:02:05.2]}
12... Bf5 {[%clk 0:02:31.5]} 13. Nxf5 {[%clk 0:02:03.9]} 13... gxf5 {[%clk
0:02:31.1]} 14. Rfe1 {[%clk 0:02:03.7]} 14... Nbd7 {[%clk 0:02:26.8]} 15. Qxf5
{[%clk 0:01:54.9]} 15... O-O-O {[%clk 0:02:25.4]} 16. Qd3 {[%clk 0:01:47]} 16...
Nb6 {[%clk 0:02:19.5]} 17. Ne4 {[%clk 0:01:34.6]} 17... Nxe4 {[%clk 0:01:58]}
18. Rxe4 {[%clk 0:01:33.9]} 18... Nxc4 {[%clk 0:01:49.7]} 19. Qxc4 {[%clk
0:01:34]} 19... Rhg8 {[%clk 0:01:46.5]} 20. c3 {[%clk 0:01:17.8]} 20... Rg5
{[%clk 0:01:33.1]} 21. Qe2 {[%clk 0:01:01.8]} 21... Rdg8 {[%clk 0:01:29.4]} 22.
Rg4 {[%clk 0:01:01.8]} 22... Rxg4 {[%clk 0:01:24]} 23. hxg4 {[%clk 0:01:01.9]}
23... Qf4 {[%clk 0:01:21.9]} 24. f3 {[%clk 0:01:02]} 24... h5 {[%clk 0:01:05.5]}
25. gxh5 {[%clk 0:00:45.4]} 25... Rg5 {[%clk 0:01:02.4]} 26. h6 {[%clk
0:00:30.7]} 26... Rh5 {[%clk 0:01:00.6]} 27. h7 {[%clk 0:00:20]} 27... Rxh7
{[%clk 0:00:55.5]} 28. Qe4 {[%clk 0:00:18.7]} 28... Qh2+ {[%clk 0:00:43.5]} 29.
Kf2 {[%clk 0:00:19]} 29... Rg7 {[%clk 0:00:41.6]} 30. Rg1 {[%clk 0:00:18.5]}
30... Qg3+ {[%clk 0:00:40.7]} 31. Kf1 {[%clk 0:00:18.3]} 31... Rg5 {[%clk
0:00:36.7]} 32. Qe1 {[%clk 0:00:16.8]} 32... Qf4 {[%clk 0:00:33]} 33. Qe2 {[%clk
0:00:14.6]} 33... Qc1+ {[%clk 0:00:30.3]} 34. Kf2 {[%clk 0:00:15]} 34... Qf4
{[%clk 0:00:29.3]} 35. Qe3 {[%clk 0:00:15.4]} 35... Qh4+ {[%clk 0:00:27.7]} 36.
Kf1 {[%clk 0:00:15.4]} 36... Qg3 {[%clk 0:00:26.3]} 37. Qf2 {[%clk 0:00:14.9]}
37... Qf4 {[%clk 0:00:25.7]} 38. Qe1 {[%clk 0:00:12.2]} 38... e5 {[%clk
0:00:21.2]} 39. dxe5 {[%clk 0:00:09.4]} 39... Rxe5 {[%clk 0:00:19.7]} 40. Qd1
{[%clk 0:00:07.6]} 40... Qe3 {[%clk 0:00:17.5]} 41. Rh1 {[%clk 0:00:06.5]} 41...
Kc7 {[%clk 0:00:16.6]} 42. Rh3 {[%clk 0:00:03.2]} 42... Qf4 {[%clk 0:00:12.6]}
43. Rh1 {[%clk 0:00:02.4]} 43... Qc4+ {[%clk 0:00:11.9]} 44. Kg1 {[%clk
0:00:01.6]} 44... Qc5+ {[%clk 0:00:11.5]} 45. Kh2 {[%clk 0:00:01.5]} 45... Rh5+
{[%clk 0:00:09.7]} 46. Kg3 {[%clk 0:00:02.1]} 46... Qe5+ {[%clk 0:00:09]} 47.
Kf2 {[%clk 0:00:02.1]} 47... Qc5+ {[%clk 0:00:08.4]} 48. Kg3 {[%clk 0:00:01.5]}
48... Qg5+ {[%clk 0:00:07.8]} 49. Kf2 {[%clk 0:00:01.7]} 49... Qc5+ {[%clk
0:00:06.2]} 50. Kg3 {[%clk 0:00:02.2]} 1/2-1/2

[Event "*** SCC Grand Prix: Titled Tuesday Blitz"]
[Site "Chess.com"]
[Date "2020.06.09"]
[Round "8"]
[White "louis198"]
[Black "Ginger_GM"]
[Result "1-0"]
[WhiteElo "2466"]
[BlackElo "2562"]
[TimeControl "180+1"]
[EndTime "10:36:16 PDT"]
[Termination "louis198 won by resignation"]

1. d4 {[%clk 0:03:00.9]} 1... Nf6 {[%clk 0:02:56.6]} 2. Bf4 {[%clk 0:03:00.8]}
2... d6 {[%clk 0:02:43.3]} 3. e3 {[%clk 0:03:00]} 3... Nc6 {[%clk 0:02:17.4]} 4.
Nf3 {[%clk 0:02:52.3]} 4... Bg4 {[%clk 0:02:16.5]} 5. Bc4 {[%clk 0:02:48.8]}
5... e6 {[%clk 0:02:11.7]} 6. O-O {[%clk 0:02:42.3]} 6... Be7 {[%clk 0:02:10.4]}
7. h3 {[%clk 0:02:41.1]} 7... Bh5 {[%clk 0:02:09.3]} 8. c3 {[%clk 0:02:41.4]}
8... O-O {[%clk 0:02:08]} 9. Nbd2 {[%clk 0:02:41.2]} 9... Re8 {[%clk 0:02:07.2]}
10. b4 {[%clk 0:02:32.3]} 10... Bf8 {[%clk 0:02:06.2]} 11. Qb3 {[%clk
0:02:30.2]} 11... a5 {[%clk 0:02:01.1]} 12. b5 {[%clk 0:02:29.3]} 12... a4
{[%clk 0:02:00.3]} 13. Qc2 {[%clk 0:02:22.7]} 13... Ne7 {[%clk 0:01:59]} 14. Bh2
{[%clk 0:02:16.2]} 14... Bg6 {[%clk 0:01:57.6]} 15. Bd3 {[%clk 0:02:09.1]} 15...
Nc8 {[%clk 0:01:41.1]} 16. c4 {[%clk 0:02:03.8]} 16... Nd7 {[%clk 0:01:28.9]}
17. Bxg6 {[%clk 0:02:01.7]} 17... hxg6 {[%clk 0:01:28]} 18. Rfd1 {[%clk
0:01:52.4]} 18... Qe7 {[%clk 0:01:09.8]} 19. Ne4 {[%clk 0:01:33.6]} 19... Nf6
{[%clk 0:01:00.6]} 20. Nxf6+ {[%clk 0:01:05]} 20... gxf6 {[%clk 0:01:00.2]} 21.
Rac1 {[%clk 0:01:05.7]} 21... f5 {[%clk 0:00:57.4]} 22. c5 {[%clk 0:01:04.4]}
22... d5 {[%clk 0:00:55.3]} 23. Rb1 {[%clk 0:00:58.1]} 23... Bg7 {[%clk
0:00:48.2]} 24. Rb4 {[%clk 0:00:57.3]} 24... a3 {[%clk 0:00:47.4]} 25. Rdb1
{[%clk 0:00:52.4]} 25... f6 {[%clk 0:00:39.4]} 26. Ra4 {[%clk 0:00:47.6]} 26...
Rxa4 {[%clk 0:00:38.7]} 27. Qxa4 {[%clk 0:00:48.5]} 27... e5 {[%clk 0:00:39.2]}
28. Qxa3 {[%clk 0:00:47.8]} 28... e4 {[%clk 0:00:38.6]} 29. Nd2 {[%clk
0:00:45.4]} 29... g5 {[%clk 0:00:38.6]} 30. Qb3 {[%clk 0:00:38.4]} 30... Qe6
{[%clk 0:00:35.7]} 31. a4 {[%clk 0:00:38]} 31... Bh6 {[%clk 0:00:31.7]} 32. Bxc7
{[%clk 0:00:38]} 32... f4 {[%clk 0:00:31.8]} 33. c6 {[%clk 0:00:34.7]} 33...
bxc6 {[%clk 0:00:30.6]} 34. b6 {[%clk 0:00:35.3]} 34... Nxb6 {[%clk 0:00:27.6]}
35. Qxb6 {[%clk 0:00:34]} 35... fxe3 {[%clk 0:00:21.8]} 36. fxe3 {[%clk
0:00:33.8]} 36... g4 {[%clk 0:00:22.3]} 37. Nf1 {[%clk 0:00:34]} 37... gxh3
{[%clk 0:00:22.4]} 38. Qb2 {[%clk 0:00:20.4]} 38... Kh7 {[%clk 0:00:20.2]} 39.
Qf2 {[%clk 0:00:16.9]} 39... Rg8 {[%clk 0:00:19.5]} 40. g3 {[%clk 0:00:16.8]}
40... Rg5 {[%clk 0:00:16.2]} 41. Bf4 {[%clk 0:00:16.9]} 41... Rf5 {[%clk
0:00:14.4]} 42. Rb7+ {[%clk 0:00:17.5]} 42... Kg6 {[%clk 0:00:14.2]} 43. a5
{[%clk 0:00:17.9]} 43... c5 {[%clk 0:00:14.5]} 44. Rb6 {[%clk 0:00:16.9]} 44...
Qc8 {[%clk 0:00:13]} 45. g4 {[%clk 0:00:14.4]} 45... Rxf4 {[%clk 0:00:11.3]} 46.
exf4 {[%clk 0:00:14.6]} 46... cxd4 {[%clk 0:00:11.4]} 47. f5+ {[%clk 0:00:14.4]}
47... Kh7 {[%clk 0:00:10.1]} 48. Qxd4 {[%clk 0:00:11.3]} 48... Bg5 {[%clk
0:00:07.7]} 49. Qxd5 {[%clk 0:00:10.5]} 49... h2+ {[%clk 0:00:07.5]} 50. Kh1
{[%clk 0:00:09.6]} 50... Qc1 {[%clk 0:00:06.6]} 51. Qf7+ {[%clk 0:00:08.4]} 1-0

[Event "*** SCC Grand Prix: Titled Tuesday Blitz"]
[Site "Chess.com"]
[Date "2020.06.09"]
[Round "8"]
[White "Biranidun"]
[Black "GM_dmitrij"]
[Result "0-1"]
[WhiteElo "2730"]
[BlackElo "2959"]
[TimeControl "180+1"]
[EndTime "10:36:23 PDT"]
[Termination "GM_dmitrij won by resignation"]

1. e4 {[%clk 0:03:00.9]} 1... e5 {[%clk 0:02:59.9]} 2. Nf3 {[%clk 0:03:00.9]}
2... Nc6 {[%clk 0:03:00.5]} 3. Bb5 {[%clk 0:03:00.5]} 3... a6 {[%clk 0:03:00.8]}
4. Ba4 {[%clk 0:03:00.8]} 4... Nf6 {[%clk 0:03:01.1]} 5. O-O {[%clk 0:03:01.4]}
5... Bc5 {[%clk 0:03:01.5]} 6. c3 {[%clk 0:02:57.1]} 6... b5 {[%clk 0:03:01.6]}
7. Bc2 {[%clk 0:02:56.1]} 7... d5 {[%clk 0:03:01.7]} 8. a4 {[%clk 0:02:48]} 8...
dxe4 {[%clk 0:03:00.6]} 9. axb5 {[%clk 0:02:47.2]} 9... exf3 {[%clk 0:02:58.4]}
10. Qxf3 {[%clk 0:02:48.1]} 10... e4 {[%clk 0:02:58.1]} 11. Bxe4 {[%clk
0:02:47.9]} 11... Ne5 {[%clk 0:02:58]} 12. Qe2 {[%clk 0:02:47.3]} 12... O-O
{[%clk 0:02:58.3]} 13. d4 {[%clk 0:02:44.2]} 13... Bg4 {[%clk 0:02:57.8]} 14.
Qc2 {[%clk 0:02:43.8]} 14... Nxe4 {[%clk 0:02:57.8]} 15. Qxe4 {[%clk 0:02:44]}
15... Nf3+ {[%clk 0:02:58.7]} 16. gxf3 {[%clk 0:02:42.8]} 16... Bh3 {[%clk
0:02:58.8]} 17. dxc5 {[%clk 0:02:42.8]} 17... Bxf1 {[%clk 0:02:58.9]} 18. Kxf1
{[%clk 0:02:43]} 18... Qd1+ {[%clk 0:02:59.5]} 19. Qe1 {[%clk 0:02:42.6]} 19...
Qxf3 {[%clk 0:02:59.8]} 20. Be3 {[%clk 0:02:37.2]} 20... axb5 {[%clk 0:02:59.7]}
21. Rxa8 {[%clk 0:02:36.9]} 21... Rxa8 {[%clk 0:02:59.2]} 22. Nd2 {[%clk
0:02:37.6]} 22... Qh1+ {[%clk 0:02:59.4]} 23. Ke2 {[%clk 0:02:37.6]} 23... Qxh2
{[%clk 0:03:00.3]} 24. Nf3 {[%clk 0:02:37.3]} 24... Qh3 {[%clk 0:03:00.9]} 25.
Qd1 {[%clk 0:02:37.6]} 25... Qe6 {[%clk 0:02:58.8]} 26. Qd3 {[%clk 0:02:37.3]}
26... Qb3 {[%clk 0:02:33.4]} 27. Ng5 {[%clk 0:02:23.2]} 27... Qc4 {[%clk
0:02:33.2]} 28. Qxc4 {[%clk 0:02:20.1]} 28... bxc4 {[%clk 0:02:34.1]} 29. Nf3
{[%clk 0:02:12]} 29... f6 {[%clk 0:02:10.6]} 30. Bf4 {[%clk 0:02:05.1]} 30... c6
{[%clk 0:01:57.5]} 31. Nd2 {[%clk 0:02:04.9]} 31... Ra4 {[%clk 0:01:53.1]} 32.
Ke3 {[%clk 0:01:58.6]} 32... h5 {[%clk 0:01:42.9]} 33. Kd4 {[%clk 0:01:56.3]}
33... g5 {[%clk 0:01:42.9]} 34. Bd6 {[%clk 0:01:52.7]} 34... h4 {[%clk
0:01:42.8]} 35. Nxc4 {[%clk 0:01:50.7]} 35... Kf7 {[%clk 0:01:42.4]} 36. b3
{[%clk 0:01:49.6]} 36... Ra2 {[%clk 0:01:36.6]} 37. Ke3 {[%clk 0:01:47.8]} 37...
Ke6 {[%clk 0:01:33.5]} 38. Nd2 {[%clk 0:01:39]} 38... f5 {[%clk 0:01:19.2]} 39.
Nf3 {[%clk 0:01:37]} 39... Kf6 {[%clk 0:01:19.6]} 40. Bc7 {[%clk 0:01:24.9]}
40... f4+ {[%clk 0:01:08.1]} 41. Ke4 {[%clk 0:01:21.6]} 41... Re2+ {[%clk
0:00:40.8]} 42. Kd3 {[%clk 0:00:58.3]} 42... Rxf2 {[%clk 0:00:41]} 43. Bd8+
{[%clk 0:00:58.6]} 43... Kf5 {[%clk 0:00:40]} 44. Nd4+ {[%clk 0:00:57.4]} 44...
Kg4 {[%clk 0:00:26.1]} 45. Nxc6 {[%clk 0:00:57.4]} 45... h3 {[%clk 0:00:24.2]}
46. Ne5+ {[%clk 0:00:57.2]} 46... Kg3 {[%clk 0:00:24.7]} 47. c6 {[%clk
0:00:47.7]} 47... Ra2 {[%clk 0:00:17.8]} 48. c7 {[%clk 0:00:43.8]} 48... Ra8
{[%clk 0:00:17.6]} 49. Nc6 {[%clk 0:00:14.6]} 49... Rc8 {[%clk 0:00:17.5]} 50.
Ne7 {[%clk 0:00:12.8]} 50... Rxc7 {[%clk 0:00:18]} 51. Bxc7 {[%clk 0:00:13.2]}
51... h2 {[%clk 0:00:18.9]} 52. Nf5+ {[%clk 0:00:13.6]} 52... Kh3 {[%clk
0:00:13.2]} 53. b4 {[%clk 0:00:09.9]} 53... h1=Q {[%clk 0:00:13.3]} 54. Nd4
{[%clk 0:00:10.3]} 54... f3 {[%clk 0:00:09.7]} 55. Ke3 {[%clk 0:00:10.1]} 55...
g4 {[%clk 0:00:10.1]} 56. b5 {[%clk 0:00:09.4]} 56... Qe1+ {[%clk 0:00:10.2]}
57. Kd3 {[%clk 0:00:09.6]} 57... f2 {[%clk 0:00:10.4]} 0-1

[Event "*** SCC Grand Prix: Titled Tuesday Blitz"]
[Site "Chess.com"]
[Date "2020.06.09"]
[Round "8"]
[White "yamalchess"]
[Black "northridgehawk"]
[Result "1-0"]
[WhiteElo "2450"]
[BlackElo "2343"]
[TimeControl "180+1"]
[EndTime "10:36:23 PDT"]
[Termination "yamalchess won by resignation"]

1. d4 {[%clk 0:03:00.9]} 1... Nf6 {[%clk 0:02:58.9]} 2. c4 {[%clk 0:03:00.9]}
2... g6 {[%clk 0:02:59.2]} 3. Nc3 {[%clk 0:03:01.4]} 3... d5 {[%clk 0:02:59.6]}
4. Bf4 {[%clk 0:03:00.3]} 4... Bg7 {[%clk 0:02:58.7]} 5. Qa4+ {[%clk 0:02:56.5]}
5... c6 {[%clk 0:02:39.7]} 6. e3 {[%clk 0:02:56.1]} 6... O-O {[%clk 0:02:38.5]}
7. Nf3 {[%clk 0:02:55.3]} 7... Be6 {[%clk 0:02:28.8]} 8. c5 {[%clk 0:02:49.3]}
8... Bg4 {[%clk 0:02:27.9]} 9. Be2 {[%clk 0:02:48.2]} 9... Bxf3 {[%clk
0:02:27.4]} 10. Bxf3 {[%clk 0:02:47.4]} 10... Nfd7 {[%clk 0:02:28.3]} 11. Bg3
{[%clk 0:02:42]} 11... e5 {[%clk 0:02:28.2]} 12. O-O {[%clk 0:02:39.5]} 12... b6
{[%clk 0:02:22.7]} 13. cxb6 {[%clk 0:02:37.4]} 13... Nxb6 {[%clk 0:02:17]} 14.
Qd1 {[%clk 0:02:27.4]} 14... exd4 {[%clk 0:02:15.8]} 15. exd4 {[%clk 0:02:26.9]}
15... N8d7 {[%clk 0:02:12.6]} 16. Qd3 {[%clk 0:02:23.8]} 16... c5 {[%clk
0:01:59.1]} 17. dxc5 {[%clk 0:02:21]} 17... Nxc5 {[%clk 0:02:00]} 18. Qb5 {[%clk
0:02:20.4]} 18... Rc8 {[%clk 0:01:55.3]} 19. Rad1 {[%clk 0:02:18.8]} 19... d4
{[%clk 0:01:54.9]} 20. Ne4 {[%clk 0:02:12.6]} 20... Ne6 {[%clk 0:01:37.5]} 21.
a4 {[%clk 0:02:03.8]} 21... Nc4 {[%clk 0:01:31.2]} 22. b3 {[%clk 0:01:56]} 22...
Na3 {[%clk 0:01:27.8]} 23. Qb7 {[%clk 0:01:41.2]} 23... a5 {[%clk 0:01:19]} 24.
Bd6 {[%clk 0:01:39.6]} 24... Nc2 {[%clk 0:01:14.9]} 25. Bxf8 {[%clk 0:01:38]}
25... Bxf8 {[%clk 0:01:15.8]} 26. Rd2 {[%clk 0:01:32.4]} 26... d3 {[%clk
0:01:05.5]} 27. Rfd1 {[%clk 0:01:28.2]} 27... Rb8 {[%clk 0:01:04.4]} 28. Qa7
{[%clk 0:01:08.2]} 28... Rxb3 {[%clk 0:01:02.9]} 29. Bg4 {[%clk 0:00:56.2]}
29... f5 {[%clk 0:00:53.7]} 30. Bh3 {[%clk 0:00:49.7]} 30... Nf4 {[%clk
0:00:44.8]} 31. Qa6 {[%clk 0:00:40.2]} 31... Qb6 {[%clk 0:00:22.4]} 32. Qc4+
{[%clk 0:00:39.1]} 32... Kg7 {[%clk 0:00:20.5]} 33. Ng3 {[%clk 0:00:33.2]} 33...
Nxh3+ {[%clk 0:00:19.3]} 34. gxh3 {[%clk 0:00:32.6]} 34... Nd4 {[%clk
0:00:17.4]} 35. Rxd3 {[%clk 0:00:31.4]} 35... Rxd3 {[%clk 0:00:15.8]} 36. Qxd3
{[%clk 0:00:30.9]} 36... Ne6 {[%clk 0:00:15.4]} 37. Qc3+ {[%clk 0:00:30]} 37...
Kh6 {[%clk 0:00:14]} 38. Qd2+ {[%clk 0:00:28.1]} 38... Kg7 {[%clk 0:00:11.1]}
39. h4 {[%clk 0:00:28.2]} 39... Be7 {[%clk 0:00:10.7]} 40. Qd7 {[%clk
0:00:27.6]} 40... Kf7 {[%clk 0:00:10.1]} 41. h5 {[%clk 0:00:27.9]} 41... Qb4
{[%clk 0:00:08.8]} 42. hxg6+ {[%clk 0:00:27.7]} 42... hxg6 {[%clk 0:00:09.7]}
43. Kf1 {[%clk 0:00:26.3]} 43... Nf4 {[%clk 0:00:10.1]} 44. Re1 {[%clk
0:00:21.9]} 44... Qc4+ {[%clk 0:00:10.2]} 45. Kg1 {[%clk 0:00:21.8]} 45... Nh3+
{[%clk 0:00:09.4]} 46. Kg2 {[%clk 0:00:21.6]} 46... Nf4+ {[%clk 0:00:09.4]} 47.
Kh1 {[%clk 0:00:20.3]} 47... Qc5 {[%clk 0:00:07.5]} 48. f3 {[%clk 0:00:18.8]}
48... Nd5 {[%clk 0:00:06.6]} 49. Qe6+ {[%clk 0:00:18.1]} 49... Kf8 {[%clk
0:00:05.9]} 50. Qxg6 {[%clk 0:00:17.5]} 50... Nf6 {[%clk 0:00:05.5]} 51. Qxf5
{[%clk 0:00:17.1]} 51... Qc6 {[%clk 0:00:05.6]} 52. Rb1 {[%clk 0:00:15]} 52...
Qxa4 {[%clk 0:00:05.3]} 53. Rb8+ {[%clk 0:00:14.4]} 53... Kf7 {[%clk 0:00:05.7]}
54. Rb1 {[%clk 0:00:13.4]} 54... Qa2 {[%clk 0:00:05.2]} 55. Re1 {[%clk
0:00:12.4]} 55... Qe6 {[%clk 0:00:05.7]} 56. Qxe6+ {[%clk 0:00:11.7]} 1-0

[Event "*** SCC Grand Prix: Titled Tuesday Blitz"]
[Site "Chess.com"]
[Date "2020.06.09"]
[Round "8"]
[White "Mikasinski"]
[Black "sonicdravise"]
[Result "1-0"]
[WhiteElo "2437"]
[BlackElo "2549"]
[TimeControl "180+1"]
[EndTime "10:36:25 PDT"]
[Termination "Mikasinski won by checkmate"]

1. e4 {[%clk 0:03:00.9]} 1... c5 {[%clk 0:02:59.8]} 2. Nf3 {[%clk 0:03:00.5]}
2... d6 {[%clk 0:02:59.9]} 3. d4 {[%clk 0:02:59.8]} 3... cxd4 {[%clk 0:03:00.8]}
4. Nxd4 {[%clk 0:03:00.4]} 4... Nf6 {[%clk 0:03:01.4]} 5. Nc3 {[%clk 0:02:59.8]}
5... Nc6 {[%clk 0:03:01.9]} 6. Bg5 {[%clk 0:02:58.9]} 6... g6 {[%clk 0:03:01.9]}
7. Bxf6 {[%clk 0:02:55.7]} 7... exf6 {[%clk 0:03:02.3]} 8. Nd5 {[%clk
0:02:51.9]} 8... Bg7 {[%clk 0:02:49.7]} 9. Nb5 {[%clk 0:02:35.6]} 9... O-O
{[%clk 0:02:46.6]} 10. Ndc3 {[%clk 0:02:22.2]} 10... f5 {[%clk 0:02:38.2]} 11.
Qxd6 {[%clk 0:02:08.2]} 11... fxe4 {[%clk 0:02:05.6]} 12. Qxd8 {[%clk
0:02:05.5]} 12... Rxd8 {[%clk 0:01:58.4]} 13. Bc4 {[%clk 0:01:57.4]} 13... a6
{[%clk 0:01:51.2]} 14. Nc7 {[%clk 0:01:51.8]} 14... Ra7 {[%clk 0:01:38.6]} 15.
N7d5 {[%clk 0:01:46]} 15... b5 {[%clk 0:01:33.7]} 16. Bb3 {[%clk 0:01:41.7]}
16... Be6 {[%clk 0:01:21.6]} 17. O-O-O {[%clk 0:01:39.6]} 17... Nd4 {[%clk
0:01:06]} 18. Kb1 {[%clk 0:00:46.3]} 18... Rad7 {[%clk 0:00:46.8]} 19. Ne3
{[%clk 0:00:29.1]} 19... Bxb3 {[%clk 0:00:46.7]} 20. axb3 {[%clk 0:00:27]} 20...
f5 {[%clk 0:00:47.6]} 21. g3 {[%clk 0:00:23.3]} 21... Kf7 {[%clk 0:00:39.6]} 22.
h4 {[%clk 0:00:22.4]} 22... h5 {[%clk 0:00:37]} 23. Rd2 {[%clk 0:00:17.7]} 23...
Nf3 {[%clk 0:00:31.9]} 24. Rxd7+ {[%clk 0:00:16.5]} 24... Rxd7 {[%clk
0:00:32.8]} 25. Ncd5 {[%clk 0:00:15.7]} 25... Ke6 {[%clk 0:00:30.4]} 26. c4
{[%clk 0:00:15.5]} 26... Be5 {[%clk 0:00:24.4]} 27. Rd1 {[%clk 0:00:12]} 27...
Rd6 {[%clk 0:00:19.7]} 28. Ka2 {[%clk 0:00:11.9]} 28... bxc4 {[%clk 0:00:17.5]}
29. bxc4 {[%clk 0:00:11.4]} 29... Nd4 {[%clk 0:00:17.9]} 30. b4 {[%clk
0:00:10.4]} 30... Rc6 {[%clk 0:00:17.2]} 31. c5 {[%clk 0:00:06.5]} 31... Rc8
{[%clk 0:00:16.8]} 32. Ka3 {[%clk 0:00:06.3]} 32... Rb8 {[%clk 0:00:16.3]} 33.
Nb6 {[%clk 0:00:05.3]} 33... Nc6 {[%clk 0:00:16]} 34. Nec4 {[%clk 0:00:05]}
34... Bc3 {[%clk 0:00:15.3]} 35. Rd6+ {[%clk 0:00:05]} 35... Ke7 {[%clk
0:00:15.7]} 36. Rxc6 {[%clk 0:00:05.9]} 36... a5 {[%clk 0:00:16.1]} 37. Rc7+
{[%clk 0:00:06]} 37... Ke6 {[%clk 0:00:15.6]} 38. Rc6+ {[%clk 0:00:05.8]} 38...
Ke7 {[%clk 0:00:15.2]} 39. Nxa5 {[%clk 0:00:05.8]} 39... Rd8 {[%clk 0:00:14.4]}
40. Rc7+ {[%clk 0:00:05.8]} 40... Kf6 {[%clk 0:00:14.5]} 41. Rc6+ {[%clk
0:00:05.7]} 41... Kg7 {[%clk 0:00:14.4]} 42. Nac4 {[%clk 0:00:05.7]} 42... Rd1
{[%clk 0:00:13.7]} 43. Ka4 {[%clk 0:00:05.6]} 43... Ra1+ {[%clk 0:00:13.2]} 44.
Kb5 {[%clk 0:00:06.1]} 44... Be1 {[%clk 0:00:14.1]} 45. Nd6 {[%clk 0:00:06.2]}
45... Rb1 {[%clk 0:00:14.3]} 46. Nd5 {[%clk 0:00:06.3]} 46... Bxf2 {[%clk
0:00:14.6]} 47. Rc7+ {[%clk 0:00:06.2]} 47... Kf8 {[%clk 0:00:12.9]} 48. Nf6
{[%clk 0:00:05.5]} 48... e3 {[%clk 0:00:05.8]} 49. Rf7# {[%clk 0:00:05.4]} 1-0